[Event "Titled Tuesday Blitz May 16 Early 2023"]
[White "Tanenbaum, Zachary"]
[Black "Dixit, Nikhil"]
[WhiteFideId "2060850"]
[BlackFideId "5059534"]
[WhiteElo "2175"]
[BlackElo "2207"]
[Result "1-0"]
[Round "09"]
[TimeControl "180+2"]
[Date "2023.05.16"]
[WhiteClock "0:02:31"]
[BlackClock "0:01:47"]

1. e4 {[%clk 0:03:00]}  c5 {[%clk 0:02:57]} 2. Nf3 {[%clk 0:03:01]}  Nc6 {[%clk 0:02:56]} 3. Nc3 {[%clk 0:03:01]}  Nf6 {[%clk 0:02:55]} 4. Bb5 {[%clk 0:03:00]}  Nd4 {[%clk 0:02:54]} 5. e5 {[%clk 0:03:00]}  Nxb5 {[%clk 0:02:48]} 6. Nxb5 {[%clk 0:03:01]}  Nd5 {[%clk 0:02:49]} 7. Ng5 {[%clk 0:03:01]}  h6 {[%clk 0:02:34]} 8. Nxf7 {[%clk 0:02:56]}  Kxf7 {[%clk 0:02:34]} 9. Qf3+ {[%clk 0:02:57]}  Ke6 {[%clk 0:02:35]} 10. c4 {[%clk 0:02:57]}  Nc7 {[%clk 0:02:26]} 11. d4 {[%clk 0:02:53]}  d5 {[%clk 0:01:55]} 12. Nxc7+ {[%clk 0:02:45]}  Qxc7 {[%clk 0:01:54]} 13. Qxd5+ {[%clk 0:02:35]}  Kf5 {[%clk 0:01:53]} 14. Qf7+ {[%clk 0:02:35]}  Ke4 {[%clk 0:01:47]} 15. Qf3+ {[%clk 0:02:30]}  Kxd4 {[%clk 0:01:47]} 16. Qd5# {[%clk 0:02:31]} 1-0


[Site "https://www.chess.com"]

[Event "Titled Tuesday Blitz May 16 Early 2023"]
[White "Badmatsyrenov, Oleg"]
[Black "Weishaeutel, Moritz"]
[WhiteFideId "24115762"]
[BlackFideId "12967300"]
[WhiteElo "2396"]
[BlackElo "2301"]
[Result "0-1"]
[Round "09"]
[TimeControl "180+2"]
[Date "2023.05.16"]
[WhiteClock "0:01:11"]
[BlackClock "0:00:27"]

1. e4 {[%clk 0:02:59]}  e5 {[%clk 0:03:00]} 2. Nc3 {[%clk 0:02:59]}  Nc6 {[%clk 0:02:56]} 3. f4 {[%clk 0:03:00]}  exf4 {[%clk 0:02:56]} 4. Nf3 {[%clk 0:03:00]}  Nf6 {[%clk 0:02:55]} 5. e5 {[%clk 0:03:00]}  Nh5 {[%clk 0:02:54]} 6. d4 {[%clk 0:03:01]}  d6 {[%clk 0:02:47]} 7. Bb5 {[%clk 0:03:01]}  dxe5 {[%clk 0:02:39]} 8. dxe5 {[%clk 0:03:02]}  Qxd1+ {[%clk 0:02:37]} 9. Nxd1 {[%clk 0:03:03]}  Bd7 {[%clk 0:02:35]} 10. Bxc6 {[%clk 0:02:58]}  Bxc6 {[%clk 0:02:36]} 11. O-O {[%clk 0:02:58]}  O-O-O {[%clk 0:02:23]} 12. Ng5 {[%clk 0:02:58]}  Rd7 {[%clk 0:02:09]} 13. Bxf4 {[%clk 0:02:58]}  Nxf4 {[%clk 0:01:49]} 14. Rxf4 {[%clk 0:02:59]}  h6 {[%clk 0:01:50]} 15. Nxf7 {[%clk 0:02:48]}  Bc5+ {[%clk 0:01:48]} 16. Kh1 {[%clk 0:02:44]}  Rf8 {[%clk 0:01:47]} 17. e6 {[%clk 0:02:45]}  Rd2 {[%clk 0:01:46]} 18. Rg4 {[%clk 0:02:34]}  Bd5 {[%clk 0:01:25]} 19. Nc3 {[%clk 0:02:20]}  Bxe6 {[%clk 0:01:25]} 20. Ne5 {[%clk 0:02:09]}  Bxg4 {[%clk 0:01:24]} 21. Nxg4 {[%clk 0:02:10]}  Rxc2 {[%clk 0:01:22]} 22. h3 {[%clk 0:02:01]}  Bd4 {[%clk 0:01:13]} 23. Nd5 {[%clk 0:01:58]}  Bxb2 {[%clk 0:01:09]} 24. Rd1 {[%clk 0:01:56]}  Rc1 {[%clk 0:01:09]} 25. Rxc1 {[%clk 0:01:56]}  Bxc1 {[%clk 0:01:09]} 26. Kg1 {[%clk 0:01:53]}  Bf4 {[%clk 0:01:04]} 27. Ne7+ {[%clk 0:01:49]}  Kd7 {[%clk 0:01:04]} 28. Ng6 {[%clk 0:01:50]}  Rf5 {[%clk 0:00:57]} 29. h4 {[%clk 0:01:50]}  Bd6 {[%clk 0:00:57]} 30. g3 {[%clk 0:01:44]}  Bxg3 {[%clk 0:00:52]} 31. Kg2 {[%clk 0:01:37]}  Bd6 {[%clk 0:00:53]} 32. Ne3 {[%clk 0:01:33]}  Ra5 {[%clk 0:00:52]} 33. Kf3 {[%clk 0:01:29]}  Rxa2 {[%clk 0:00:51]} 34. Nf5 {[%clk 0:01:29]}  Ra3+ {[%clk 0:00:45]} 35. Kg4 {[%clk 0:01:28]}  Ra4+ {[%clk 0:00:46]} 36. Kh5 {[%clk 0:01:28]}  Ra5 {[%clk 0:00:46]} 37. Kg4 {[%clk 0:01:29]}  h5+ {[%clk 0:00:42]} 38. Kg5 {[%clk 0:01:27]}  Rb5 {[%clk 0:00:40]} 39. Nh8 {[%clk 0:01:20]}  a5 {[%clk 0:00:36]} 40. Nf7 {[%clk 0:01:21]}  a4 {[%clk 0:00:36]} 41. Kg6 {[%clk 0:01:19]}  a3 {[%clk 0:00:34]} 42. Nxg7 {[%clk 0:01:15]}  a2 {[%clk 0:00:34]} 43. Kh7 {[%clk 0:01:15]}  a1=Q {[%clk 0:00:33]} 44. Kg8 {[%clk 0:01:16]}  Ra5 {[%clk 0:00:30]} 45. Kh7 {[%clk 0:01:11]}  Qb1+ {[%clk 0:00:28]} 46. Kg8 {[%clk 0:01:11]}  Ra8+ {[%clk 0:00:27]} 47. Nd8 {[%clk 0:01:12]}  Rxd8+ {[%clk 0:00:27]} 48. Ne8 {[%clk 0:01:13]}  Rxe8+ {[%clk 0:00:27]} 49. Kf7 {[%clk 0:01:11]}  Qf5+ {[%clk 0:00:27]} 0-1


[Site "https://www.chess.com"]

[Event "Titled Tuesday Blitz May 16 Early 2023"]
[White "Lavrik, Dmitry"]
[Black "Bruedigam, Martin"]
[WhiteFideId "24113190"]
[BlackFideId "24608033"]
[WhiteElo "2345"]
[BlackElo "2331"]
[Result "1-0"]
[Round "09"]
[TimeControl "180+2"]
[Date "2023.05.16"]
[WhiteClock "0:00:22"]
[BlackClock "0:00:00"]

1. c4 {[%clk 0:03:00]}  Nf6 {[%clk 0:02:59]} 2. Nf3 {[%clk 0:03:00]}  e6 {[%clk 0:02:55]} 3. g3 {[%clk 0:02:56]}  a6 {[%clk 0:02:54]} 4. Bg2 {[%clk 0:02:56]}  b5 {[%clk 0:02:54]} 5. Nd4 {[%clk 0:02:32]}  c6 {[%clk 0:02:50]} 6. cxb5 {[%clk 0:02:32]}  axb5 {[%clk 0:02:51]} 7. Nxb5 {[%clk 0:02:31]}  d5 {[%clk 0:02:50]} 8. N5c3 {[%clk 0:02:29]}  e5 {[%clk 0:02:44]} 9. O-O {[%clk 0:02:23]}  h5 {[%clk 0:02:42]} 10. d4 {[%clk 0:02:24]}  exd4 {[%clk 0:02:37]} 11. Qxd4 {[%clk 0:02:23]}  h4 {[%clk 0:02:36]} 12. e4 {[%clk 0:02:17]}  Be6 {[%clk 0:02:24]} 13. exd5 {[%clk 0:01:37]}  cxd5 {[%clk 0:02:23]} 14. Bg5 {[%clk 0:01:38]}  hxg3 {[%clk 0:02:16]} 15. hxg3 {[%clk 0:01:37]}  Be7 {[%clk 0:01:53]} 16. Na3 {[%clk 0:01:19]}  Nc6 {[%clk 0:01:44]} 17. Qd2 {[%clk 0:01:19]}  Ng4 {[%clk 0:01:18]} 18. Bxe7 {[%clk 0:01:06]}  Nxe7 {[%clk 0:01:19]} 19. Rfe1 {[%clk 0:01:05]}  Kf8 {[%clk 0:01:14]} 20. Nab5 {[%clk 0:01:04]}  Ra6 {[%clk 0:00:48]} 21. Rad1 {[%clk 0:00:49]}  Bd7 {[%clk 0:00:35]} 22. Nxd5 {[%clk 0:00:42]}  Bxb5 {[%clk 0:00:23]} 23. Nxe7 {[%clk 0:00:42]}  Qxd2 {[%clk 0:00:17]} 24. Rxd2 {[%clk 0:00:42]}  g6 {[%clk 0:00:10]} 25. a3 {[%clk 0:00:31]}  Kg7 {[%clk 0:00:10]} 26. Nd5 {[%clk 0:00:31]}  Ra7 {[%clk 0:00:07]} 27. Nc3 {[%clk 0:00:29]}  Bd7 {[%clk 0:00:06]} 28. Re7 {[%clk 0:00:28]}  Nf6 {[%clk 0:00:07]} 29. Ne4 {[%clk 0:00:23]}  Ng8 {[%clk 0:00:00]} 30. Rexd7 {[%clk 0:00:22]} 1-0


[Site "https://www.chess.com"]

[Event "Titled Tuesday Blitz May 16 Early 2023"]
[White "Omelja, Artem"]
[Black "Domingo Nunez, Ruben"]
[WhiteFideId "14119846"]
[BlackFideId "22245570"]
[WhiteElo "2404"]
[BlackElo "2404"]
[Result "0-1"]
[Round "09"]
[TimeControl "180+2"]
[Date "2023.05.16"]
[WhiteClock "0:00:02"]
[BlackClock "0:01:31"]

1. e4 {[%clk 0:03:00]}  g6 {[%clk 0:02:54]} 2. d4 {[%clk 0:02:58]}  Bg7 {[%clk 0:02:55]} 3. Nc3 {[%clk 0:02:58]}  c6 {[%clk 0:02:56]} 4. Nf3 {[%clk 0:02:49]}  d5 {[%clk 0:02:56]} 5. Be2 {[%clk 0:02:41]}  dxe4 {[%clk 0:02:57]} 6. Nxe4 {[%clk 0:02:41]}  Nf6 {[%clk 0:02:58]} 7. Nxf6+ {[%clk 0:02:39]}  exf6 {[%clk 0:02:59]} 8. O-O {[%clk 0:02:39]}  O-O {[%clk 0:03:00]} 9. c3 {[%clk 0:02:38]}  a5 {[%clk 0:03:01]} 10. a4 {[%clk 0:02:37]}  Na6 {[%clk 0:03:02]} 11. Bf4 {[%clk 0:02:36]}  Nc7 {[%clk 0:03:03]} 12. Bg3 {[%clk 0:02:35]}  Nd5 {[%clk 0:03:03]} 13. Bc4 {[%clk 0:02:33]}  Re8 {[%clk 0:03:03]} 14. Qd2 {[%clk 0:02:32]}  Be6 {[%clk 0:03:03]} 15. Rfe1 {[%clk 0:02:30]}  Qd7 {[%clk 0:03:00]} 16. h3 {[%clk 0:02:17]}  Bf8 {[%clk 0:02:57]} 17. Re2 {[%clk 0:02:12]}  Nb6 {[%clk 0:02:38]} 18. Bxe6 {[%clk 0:02:04]}  Rxe6 {[%clk 0:02:38]} 19. Rxe6 {[%clk 0:02:04]}  Qxe6 {[%clk 0:02:39]} 20. Re1 {[%clk 0:01:58]}  Qb3 {[%clk 0:02:38]} 21. Qf4 {[%clk 0:01:50]}  Nd5 {[%clk 0:02:37]} 22. Qh4 {[%clk 0:01:26]}  Qxa4 {[%clk 0:01:58]} 23. Nd2 {[%clk 0:01:19]}  Qc2 {[%clk 0:01:53]} 24. Ne4 {[%clk 0:00:24]}  f5 {[%clk 0:01:54]} 25. Nf6+ {[%clk 0:00:19]}  Nxf6 {[%clk 0:01:54]} 26. Qxf6 {[%clk 0:00:20]}  Bg7 {[%clk 0:01:54]} 27. Qe7 {[%clk 0:00:18]}  Qxb2 {[%clk 0:01:53]} 28. Re3 {[%clk 0:00:05]}  a4 {[%clk 0:01:51]} 29. Bc7 {[%clk 0:00:05]}  a3 {[%clk 0:01:40]} 30. Bd8 {[%clk 0:00:04]}  a2 {[%clk 0:01:36]} 31. Qe8+ {[%clk 0:00:04]}  Bf8 {[%clk 0:01:37]} 32. Re7 {[%clk 0:00:05]}  Qc1+ {[%clk 0:01:31]} 33. Kh2 {[%clk 0:00:02]}  Qf4+ {[%clk 0:01:31]} 0-1


[Site "https://www.chess.com"]

[Event "Titled Tuesday Blitz May 16 Early 2023"]
[White "Florescu, Codrut-Constantin"]
[Black "Bagwe Gaurang"]
[WhiteFideId "1202200"]
[BlackFideId "45039895"]
[WhiteElo "2191"]
[BlackElo "1847"]
[Result "1-0"]
[Round "09"]
[TimeControl "180+2"]
[Date "2023.05.16"]
[WhiteClock "0:02:02"]
[BlackClock "0:00:45"]

1. c4 {[%clk 0:02:56]}  e6 {[%clk 0:02:58]} 2. Nc3 {[%clk 0:02:55]}  d5 {[%clk 0:02:58]} 3. d4 {[%clk 0:02:55]}  Nf6 {[%clk 0:02:58]} 4. Nf3 {[%clk 0:02:56]}  c5 {[%clk 0:02:58]} 5. e3 {[%clk 0:02:56]}  a6 {[%clk 0:02:56]} 6. a3 {[%clk 0:02:55]}  cxd4 {[%clk 0:02:50]} 7. exd4 {[%clk 0:02:55]}  Nc6 {[%clk 0:02:49]} 8. Bd3 {[%clk 0:02:55]}  dxc4 {[%clk 0:02:49]} 9. Bxc4 {[%clk 0:02:55]}  Bd6 {[%clk 0:02:45]} 10. O-O {[%clk 0:02:54]}  O-O {[%clk 0:02:45]} 11. Qe2 {[%clk 0:02:55]}  b5 {[%clk 0:02:45]} 12. Ba2 {[%clk 0:02:54]}  Bb7 {[%clk 0:02:43]} 13. Rd1 {[%clk 0:02:54]}  h6 {[%clk 0:02:40]} 14. Be3 {[%clk 0:02:51]}  Re8 {[%clk 0:02:38]} 15. Rac1 {[%clk 0:02:45]}  Ne7 {[%clk 0:02:38]} 16. Ne5 {[%clk 0:02:41]}  Rc8 {[%clk 0:02:36]} 17. Bxh6 {[%clk 0:02:24]}  gxh6 {[%clk 0:01:55]} 18. Nxf7 {[%clk 0:02:23]}  Qb6 {[%clk 0:01:41]} 19. Qxe6 {[%clk 0:02:11]}  Kg7 {[%clk 0:01:32]} 20. Nxd6 {[%clk 0:02:08]}  Neg8 {[%clk 0:00:50]} 21. Nf5+ {[%clk 0:02:06]}  Kg6 {[%clk 0:00:47]} 22. Qxb6 {[%clk 0:02:02]}  Kxf5 {[%clk 0:00:45]} 23. Qxb7 {[%clk 0:02:02]} 1-0


[Site "https://www.chess.com"]

[Event "Titled Tuesday Blitz May 16 Early 2023"]
[White "Martic, Ivan"]
[Black "Kamalidenova, Meruert"]
[WhiteFideId "929301"]
[BlackFideId "13712802"]
[WhiteElo "2360"]
[BlackElo "2361"]
[Result "1-0"]
[Round "09"]
[TimeControl "180+2"]
[Date "2023.05.16"]
[WhiteClock "0:00:10"]
[BlackClock "0:00:13"]

1. e4 {[%clk 0:02:58]}  e6 {[%clk 0:02:58]} 2. d4 {[%clk 0:02:57]}  d5 {[%clk 0:02:58]} 3. e5 {[%clk 0:02:57]}  c5 {[%clk 0:02:56]} 4. c3 {[%clk 0:02:58]}  Nc6 {[%clk 0:02:57]} 5. Nf3 {[%clk 0:02:58]}  Bd7 {[%clk 0:02:52]} 6. Be2 {[%clk 0:02:58]}  Qb6 {[%clk 0:02:46]} 7. O-O {[%clk 0:02:57]}  cxd4 {[%clk 0:02:47]} 8. cxd4 {[%clk 0:02:56]}  Nge7 {[%clk 0:02:46]} 9. Nc3 {[%clk 0:02:55]}  Nf5 {[%clk 0:02:44]} 10. Na4 {[%clk 0:02:55]}  Qd8 {[%clk 0:02:39]} 11. Kh1 {[%clk 0:02:46]}  Be7 {[%clk 0:02:38]} 12. a3 {[%clk 0:02:40]}  h5 {[%clk 0:02:34]} 13. b4 {[%clk 0:02:30]}  Ncxd4 {[%clk 0:02:26]} 14. Nxd4 {[%clk 0:02:27]}  Nxd4 {[%clk 0:02:24]} 15. Bd3 {[%clk 0:02:28]}  Nc6 {[%clk 0:02:21]} 16. Bb2 {[%clk 0:02:25]}  g6 {[%clk 0:02:20]} 17. Rc1 {[%clk 0:02:25]}  Kf8 {[%clk 0:02:19]} 18. Nc5 {[%clk 0:02:24]}  Rb8 {[%clk 0:02:14]} 19. b5 {[%clk 0:02:03]}  Na5 {[%clk 0:02:10]} 20. a4 {[%clk 0:02:02]}  b6 {[%clk 0:02:06]} 21. Na6 {[%clk 0:01:47]}  Rc8 {[%clk 0:02:05]} 22. Qe2 {[%clk 0:01:35]}  Kg7 {[%clk 0:02:03]} 23. Rxc8 {[%clk 0:01:28]}  Bxc8 {[%clk 0:02:02]} 24. Rc1 {[%clk 0:01:27]}  Bxa6 {[%clk 0:02:02]} 25. bxa6 {[%clk 0:01:27]}  Nb3 {[%clk 0:02:02]} 26. Rc6 {[%clk 0:01:25]}  Nc5 {[%clk 0:01:59]} 27. Bb5 {[%clk 0:01:24]}  d4 {[%clk 0:01:44]} 28. Qc4 {[%clk 0:01:06]}  d3 {[%clk 0:01:42]} 29. Rd6 {[%clk 0:01:02]}  Bxd6 {[%clk 0:01:41]} 30. exd6+ {[%clk 0:01:02]}  f6 {[%clk 0:01:38]} 31. Qd4 {[%clk 0:00:55]}  e5 {[%clk 0:01:36]} 32. Qd5 {[%clk 0:00:54]}  d2 {[%clk 0:01:33]} 33. Be2 {[%clk 0:00:51]}  Re8 {[%clk 0:01:28]} 34. Bb5 {[%clk 0:00:38]}  Re6 {[%clk 0:01:26]} 35. d7 {[%clk 0:00:38]}  Re7 {[%clk 0:01:26]} 36. Qxd2 {[%clk 0:00:38]}  Nxd7 {[%clk 0:01:24]} 37. Ba3 {[%clk 0:00:34]}  Rf7 {[%clk 0:01:19]} 38. Bc4 {[%clk 0:00:34]}  Qc7 {[%clk 0:01:11]} 39. Bxf7 {[%clk 0:00:33]}  Kxf7 {[%clk 0:01:11]} 40. Qd5+ {[%clk 0:00:28]}  Kg7 {[%clk 0:01:09]} 41. Qb7 {[%clk 0:00:27]}  Qd8 {[%clk 0:01:04]} 42. Qxa7 {[%clk 0:00:27]}  Kh6 {[%clk 0:01:05]} 43. h4 {[%clk 0:00:24]}  f5 {[%clk 0:01:00]} 44. Qb7 {[%clk 0:00:19]}  Nf6 {[%clk 0:00:48]} 45. f3 {[%clk 0:00:14]}  e4 {[%clk 0:00:42]} 46. Bc1+ {[%clk 0:00:12]}  g5 {[%clk 0:00:36]} 47. hxg5+ {[%clk 0:00:11]}  Kg6 {[%clk 0:00:36]} 48. gxf6 {[%clk 0:00:12]}  Qxf6 {[%clk 0:00:30]} 49. Bd2 {[%clk 0:00:06]}  Qa1+ {[%clk 0:00:16]} 50. Kh2 {[%clk 0:00:06]}  Qe5+ {[%clk 0:00:15]} 51. Kh3 {[%clk 0:00:06]}  e3 {[%clk 0:00:14]} 52. Qxb6+ {[%clk 0:00:05]}  Kf7 {[%clk 0:00:14]} 53. Qxe3 {[%clk 0:00:06]}  Qf6 {[%clk 0:00:13]} 54. Qb3+ {[%clk 0:00:05]}  Kg6 {[%clk 0:00:13]} 55. Qg8+ {[%clk 0:00:05]}  Qg7 {[%clk 0:00:12]} 56. Qxg7+ {[%clk 0:00:05]}  Kxg7 {[%clk 0:00:13]} 57. a7 {[%clk 0:00:06]}  f4 {[%clk 0:00:13]} 58. a8=Q {[%clk 0:00:06]}  Kh7 {[%clk 0:00:13]} 59. Qe4+ {[%clk 0:00:06]}  Kg8 {[%clk 0:00:13]} 60. Qxf4 {[%clk 0:00:07]}  h4 {[%clk 0:00:13]} 61. Qg5+ {[%clk 0:00:07]}  Kh8 {[%clk 0:00:13]} 62. Qxh4+ {[%clk 0:00:08]}  Kg7 {[%clk 0:00:14]} 63. Qg4+ {[%clk 0:00:09]}  Kh7 {[%clk 0:00:14]} 64. a5 {[%clk 0:00:10]}  Kh8 {[%clk 0:00:13]} 65. Bc3+ {[%clk 0:00:10]}  Kh7 {[%clk 0:00:13]} 66. Qg7# {[%clk 0:00:10]} 1-0


[Site "https://www.chess.com"]

[Event "Titled Tuesday Blitz May 16 Early 2023"]
[White "Galchenko, Matvey"]
[Black "wqws"]
[WhiteFideId "24175480"]
[WhiteElo "2423"]
[BlackElo "2602"]
[Result "1-0"]
[Round "09"]
[TimeControl "180+2"]
[Date "2023.05.16"]
[WhiteClock "0:00:11"]
[BlackClock "0:00:08"]

1. e4 {[%clk 0:03:00]}  c5 {[%clk 0:03:00]} 2. c3 {[%clk 0:03:00]}  Nf6 {[%clk 0:02:59]} 3. e5 {[%clk 0:03:01]}  Nd5 {[%clk 0:02:59]} 4. Nf3 {[%clk 0:03:02]}  d6 {[%clk 0:02:58]} 5. Bb5+ {[%clk 0:03:01]}  Bd7 {[%clk 0:02:56]} 6. Bc4 {[%clk 0:03:01]}  Nb6 {[%clk 0:02:53]} 7. Bb3 {[%clk 0:03:01]}  d5 {[%clk 0:02:50]} 8. d4 {[%clk 0:02:43]}  e6 {[%clk 0:02:47]} 9. O-O {[%clk 0:02:42]}  Nc6 {[%clk 0:02:46]} 10. a3 {[%clk 0:02:33]}  cxd4 {[%clk 0:02:30]} 11. cxd4 {[%clk 0:02:33]}  Be7 {[%clk 0:02:30]} 12. Nc3 {[%clk 0:02:30]}  O-O {[%clk 0:02:30]} 13. Bc2 {[%clk 0:02:29]}  Rc8 {[%clk 0:02:28]} 14. Qd3 {[%clk 0:02:10]}  g6 {[%clk 0:02:25]} 15. Bh6 {[%clk 0:02:10]}  Re8 {[%clk 0:02:25]} 16. Qe3 {[%clk 0:01:59]}  Nc4 {[%clk 0:02:22]} 17. Qf4 {[%clk 0:02:00]}  Nxb2 {[%clk 0:02:10]} 18. Rab1 {[%clk 0:01:06]}  Nc4 {[%clk 0:02:03]} 19. Rxb7 {[%clk 0:01:05]}  Rb8 {[%clk 0:01:42]} 20. Rxb8 {[%clk 0:01:03]}  Qxb8 {[%clk 0:01:41]} 21. Ng5 {[%clk 0:00:52]}  f5 {[%clk 0:01:40]} 22. Rb1 {[%clk 0:00:41]}  Qd8 {[%clk 0:01:40]} 23. Bd3 {[%clk 0:00:19]}  Nxa3 {[%clk 0:01:37]} 24. Rc1 {[%clk 0:00:17]}  Nb4 {[%clk 0:01:35]} 25. Bf1 {[%clk 0:00:15]}  Nc4 {[%clk 0:01:25]} 26. h4 {[%clk 0:00:15]}  Bf8 {[%clk 0:01:16]} 27. Bxf8 {[%clk 0:00:14]}  Rxf8 {[%clk 0:01:17]} 28. h5 {[%clk 0:00:15]}  Qe7 {[%clk 0:01:10]} 29. hxg6 {[%clk 0:00:13]}  hxg6 {[%clk 0:01:11]} 30. Qh4 {[%clk 0:00:11]}  a5 {[%clk 0:01:10]} 31. Ne2 {[%clk 0:00:08]}  Nd3 {[%clk 0:01:02]} 32. Rc3 {[%clk 0:00:08]}  Ncb2 {[%clk 0:00:55]} 33. Nc1 {[%clk 0:00:07]}  Nxc1 {[%clk 0:00:54]} 34. Rxc1 {[%clk 0:00:06]}  Nc4 {[%clk 0:00:35]} 35. Rc3 {[%clk 0:00:04]}  a4 {[%clk 0:00:33]} 36. Rg3 {[%clk 0:00:02]}  a3 {[%clk 0:00:28]} 37. Bxc4 {[%clk 0:00:03]}  dxc4 {[%clk 0:00:26]} 38. Rxa3 {[%clk 0:00:04]}  f4 {[%clk 0:00:13]} 39. Rh3 {[%clk 0:00:02]}  Qg7 {[%clk 0:00:12]} 40. Qg4 {[%clk 0:00:03]}  Rf5 {[%clk 0:00:09]} 41. Rc3 {[%clk 0:00:03]}  Bb5 {[%clk 0:00:08]} 42. Nxe6 {[%clk 0:00:03]}  Qh6 {[%clk 0:00:06]} 43. d5 {[%clk 0:00:02]}  f3 {[%clk 0:00:06]} 44. Rxf3 {[%clk 0:00:03]}  Qc1+ {[%clk 0:00:06]} 45. Kh2 {[%clk 0:00:03]}  Rh5+ {[%clk 0:00:06]} 46. Rh3 {[%clk 0:00:03]}  Qh6 {[%clk 0:00:04]} 47. Nf4 {[%clk 0:00:03]}  Rxh3+ {[%clk 0:00:03]} 48. gxh3 {[%clk 0:00:03]}  c3 {[%clk 0:00:03]} 49. Ng2 {[%clk 0:00:02]}  c2 {[%clk 0:00:02]} 50. Qc8+ {[%clk 0:00:03]}  Kh7 {[%clk 0:00:02]} 51. Qxc2 {[%clk 0:00:04]}  Qg5 {[%clk 0:00:02]} 52. Qe4 {[%clk 0:00:04]}  Bd7 {[%clk 0:00:01]} 53. e6 {[%clk 0:00:04]}  Be8 {[%clk 0:00:02]} 54. d6 {[%clk 0:00:04]}  Qd8 {[%clk 0:00:02]} 55. d7 {[%clk 0:00:04]}  Bxd7 {[%clk 0:00:02]} 56. exd7 {[%clk 0:00:05]}  Qxd7 {[%clk 0:00:03]} 57. Nf4 {[%clk 0:00:05]}  Qd6 {[%clk 0:00:03]} 58. Qxg6+ {[%clk 0:00:05]}  Qxg6 {[%clk 0:00:03]} 59. Nxg6 {[%clk 0:00:06]}  Kxg6 {[%clk 0:00:04]} 60. Kg3 {[%clk 0:00:07]}  Kg5 {[%clk 0:00:05]} 61. f4+ {[%clk 0:00:07]}  Kf5 {[%clk 0:00:06]} 62. Kf3 {[%clk 0:00:08]}  Kg6 {[%clk 0:00:06]} 63. Kg4 {[%clk 0:00:09]}  Kf6 {[%clk 0:00:07]} 64. f5 {[%clk 0:00:10]}  Kg7 {[%clk 0:00:08]} 65. Kg5 {[%clk 0:00:11]}  Kh8 {[%clk 0:00:09]} 66. Kg6 {[%clk 0:00:11]}  Kg8 {[%clk 0:00:10]} 67. f6 {[%clk 0:00:11]}  Kf8 {[%clk 0:00:08]} 68. f7 {[%clk 0:00:11]} 1-0


[Site "https://www.chess.com"]

[Event "Titled Tuesday Blitz May 16 Early 2023"]
[White "Mikhailovsky, Vladimir"]
[Black "Sebag, Marie"]
[WhiteFideId "34105414"]
[BlackFideId "617822"]
[WhiteElo "2271"]
[BlackElo "2431"]
[Result "1-0"]
[Round "09"]
[TimeControl "180+2"]
[Date "2023.05.16"]
[WhiteClock "0:00:03"]
[BlackClock "0:00:06"]

1. e4 {[%clk 0:02:56]}  e5 {[%clk 0:02:14]} 2. Nf3 {[%clk 0:02:15]}  Nc6 {[%clk 0:02:14]} 3. Nc3 {[%clk 0:02:16]}  Nf6 {[%clk 0:02:13]} 4. Nxe5 {[%clk 0:02:16]}  Nxe5 {[%clk 0:02:13]} 5. d4 {[%clk 0:02:17]}  Ng6 {[%clk 0:02:10]} 6. e5 {[%clk 0:02:17]}  Be7 {[%clk 0:02:08]} 7. exf6 {[%clk 0:02:17]}  Bxf6 {[%clk 0:02:08]} 8. Nd5 {[%clk 0:02:06]}  O-O {[%clk 0:02:07]} 9. Be2 {[%clk 0:02:05]}  c6 {[%clk 0:02:05]} 10. Nxf6+ {[%clk 0:02:05]}  Qxf6 {[%clk 0:02:05]} 11. d5 {[%clk 0:01:59]}  cxd5 {[%clk 0:01:58]} 12. O-O {[%clk 0:01:57]}  d4 {[%clk 0:01:53]} 13. Bf3 {[%clk 0:01:55]}  d6 {[%clk 0:01:52]} 14. Re1 {[%clk 0:01:45]}  Ne5 {[%clk 0:01:41]} 15. Be4 {[%clk 0:01:31]}  Bg4 {[%clk 0:01:32]} 16. f3 {[%clk 0:01:22]}  Be6 {[%clk 0:01:31]} 17. Bxb7 {[%clk 0:01:21]}  Rab8 {[%clk 0:01:31]} 18. Be4 {[%clk 0:01:21]}  d5 {[%clk 0:01:25]} 19. Bd3 {[%clk 0:01:00]}  Nxd3 {[%clk 0:01:25]} 20. cxd3 {[%clk 0:00:51]}  Bf5 {[%clk 0:01:25]} 21. b3 {[%clk 0:00:49]}  Qg6 {[%clk 0:01:24]} 22. Bb2 {[%clk 0:00:49]}  Qf6 {[%clk 0:01:15]} 23. Qd2 {[%clk 0:00:44]}  Rbc8 {[%clk 0:01:00]} 24. Qf2 {[%clk 0:00:43]}  Bxd3 {[%clk 0:00:57]} 25. Bxd4 {[%clk 0:00:43]}  Qg6 {[%clk 0:00:57]} 26. Bxa7 {[%clk 0:00:41]}  Rc2 {[%clk 0:00:56]} 27. Qg3 {[%clk 0:00:41]}  Ra8 {[%clk 0:00:49]} 28. Bd4 {[%clk 0:00:31]}  Qxg3 {[%clk 0:00:46]} 29. hxg3 {[%clk 0:00:31]}  h5 {[%clk 0:00:45]} 30. Re3 {[%clk 0:00:26]}  Bf5 {[%clk 0:00:30]} 31. a4 {[%clk 0:00:26]}  f6 {[%clk 0:00:21]} 32. Re7 {[%clk 0:00:16]}  Rd2 {[%clk 0:00:19]} 33. Bc5 {[%clk 0:00:12]}  Rc8 {[%clk 0:00:18]} 34. b4 {[%clk 0:00:13]}  d4 {[%clk 0:00:19]} 35. a5 {[%clk 0:00:13]}  d3 {[%clk 0:00:19]} 36. a6 {[%clk 0:00:13]}  Rc2 {[%clk 0:00:17]} 37. a7 {[%clk 0:00:11]}  d2 {[%clk 0:00:16]} 38. a8=Q {[%clk 0:00:11]}  Rxa8 {[%clk 0:00:15]} 39. Rxa8+ {[%clk 0:00:11]}  Kh7 {[%clk 0:00:15]} 40. Rd8 {[%clk 0:00:04]}  Rc1+ {[%clk 0:00:15]} 41. Kh2 {[%clk 0:00:03]}  d1=Q {[%clk 0:00:16]} 42. Rxd1 {[%clk 0:00:03]}  Rxd1 {[%clk 0:00:16]} 43. Rc7 {[%clk 0:00:03]}  Kg8 {[%clk 0:00:14]} 44. b5 {[%clk 0:00:03]}  Rb1 {[%clk 0:00:13]} 45. b6 {[%clk 0:00:04]}  Bd3 {[%clk 0:00:13]} 46. b7 {[%clk 0:00:03]}  Kh7 {[%clk 0:00:13]} 47. Bf8 {[%clk 0:00:03]}  Kg6 {[%clk 0:00:12]} 48. Rxg7+ {[%clk 0:00:02]}  Kf5 {[%clk 0:00:06]} 49. Bd6 {[%clk 0:00:03]} 1-0


[Site "https://www.chess.com"]